bitfinex/quotes_ETHUSD_20250403
["timestamp","ask_amount","ask_price","bid_price","bid_amount"]
[1743682053586,5.5771,1793.1,1792.8,5.57783]
[1743682054494,5.57665,1793.2,1792.9,5.57745]
[1743682054720,5.65553,1793.3,1792.9,5.57755]
[1743682054721,0.0792,1793.3,1792.9,5.57755]
[1743682055012,16.7929,1793.5,1793.1,5.57665]
[1743682055586,11.217,1793.5,1793.1,11.15348]
[1743682055785,0.18829889,1793.4,1793.3,5.57631]
[1743682056116,11.15041,1793.7,1793.3,11.15262]
[1743682056317,16.79002,1793.8,1793.4,5.57578]
[1743682056503,11.21502,1793.8,1793.4,5.57578]
[1743682056815,16.78995,1793.8,1793.4,5.57578]
[1743682057120,16.78995,1793.8,1793.3,5.57624]
[1743682057121,11.15037,1793.7,1793.3,5.57624]
[1743682057340,11.15037,1793.7,1793.3,11.786944]
[1743682057488,5.57555,1793.6,1793.3,6.210704]
[1743682057803,5.6402,1793.8,1793.1,12.269068]
[1743682057804,5.57571,1793.5,1793.1,12.269068]
[1743682059070,5.6557,1793.3,1793.0,5.57719]
[1743682059203,5.57662,1793.2,1792.9,5.57754]
[1743682059526,11.15342,1793.2,1792.8,5.5777]
[1743682061023,0.0792,1793.3,1792.6,45.71944]
[1743682061024,5.57744,1793.0,1792.6,45.71944]
[1743682061198,5.57737,1793.0,1792.6,45.71935]
[1743682061538,0.1911688,1792.9,1792.8,11.97402]
[1743682062043,5.57673,1793.2,1792.9,5.57752]
[1743682062522,0.0792,1793.4,1792.9,0.05577083]
[1743682062523,5.6552,1793.4,1792.9,0.05577083]
[1743682062724,5.6552,1793.4,1793.0,5.57705]
[1743682062725,11.2314,1793.4,1793.0,5.57705]
[1743682062912,5.6552,1793.4,1793.0,11.711865]
[1743682063222,16.70556,1793.5,1793.1,5.57681]
[1743682063403,5.57633,1793.3,1793.0,6.134875]
[1743682063798,11.12973,1793.5,1793.0,0.557705]
[1743682064010,5.65463,1793.6,1793.2,5.57631]
[1743682064212,0.0792,1793.6,1793.3,11.15239]
[1743682064405,5.57511,1793.7,1793.4,5.57591]
[1743682064892,5.57511,1793.7,1793.3,5.57619]
[1743682065098,5.57551,1793.6,1793.3,5.57619]
[1743682065407,5.57551,1793.6,1793.3,6.691467]
[1743682065789,11.25365,1793.9,1793.1,4.45145172]
[1743682065790,5.57587,1793.5,1793.1,6.35472]
[1743682065990,11.15353,1793.2,1793.0,6.11]
[1743682066329,11.15412,1793.1,1792.7,10.976215]
[1743682066526,5.57767,1792.9,1792.5,5.57865]
[1743682066738,5.57767,1792.9,1792.6,5.57844]
[1743682067045,5.57729,1793.0,1792.6,5.57832]
[1743682067211,5.57765,1792.9,1792.6,5.57832]
[1743682069024,5.65555,1793.3,1792.8,5.57769]
[1743682069231,11.15358,1793.2,1792.8,6.916659]
[1743682069433,5.57698,1793.1,1792.8,1.338969]
[1743682069732,5.57734,1793.0,1792.8,0.557769]
[1743682070230,5.57669,1793.2,1792.8,6.19126412]
[1743682070399,5.57633,1793.3,1793.0,6.3584]
[1743682070598,0.18524479,1793.2,1793.0,6.3584]
[1743682072327,0.18524479,1793.2,1793.1,5.57693]
[1743682072499,0.18524479,1793.2,1793.0,6.41416703]
[1743682072500,0.18524479,1793.2,1793.0,6.3584]
[1743682072700,5.57628,1793.4,1793.0,11.93537]
[1743682072906,5.57628,1793.4,1793.1,0.05576297]
[1743682073106,0.18683294,1793.3,1793.0,13.19081964]
[1743682073617,0.18683294,1793.2,1793.1,0.05576297]
[1743682073935,5.57616,1793.4,1793.1,0.05576297]
[1743682074141,0.18683294,1793.2,1793.1,0.05576297]
[1743682074348,5.65495,1793.5,1793.1,6.95722123]
[1743682074546,5.57542,1793.6,1793.2,5.57661]
[1743682074547,11.15097,1793.6,1793.2,5.57661]
[1743682074747,5.57569,1793.5,1793.2,5.57661]
[1743682075123,11.15153,1793.5,1793.2,5.57661]
[1743682075444,5.57609,1793.4,1793.1,5.57687]
[1743682079024,0.0792,1793.3,1792.9,6.19650641]
[1743682079254,5.65509,1793.5,1793.0,0.05576616]
[1743682079434,11.23095,1793.5,1793.1,11.1537]
[1743682079834,5.57609,1793.4,1793.0,5.57717]
[1743682080029,5.57644,1793.3,1793.0,5.57717]
[1743682080230,5.57673,1793.2,1792.9,5.57748]
[1743682080459,5.57644,1793.3,1793.0,5.57724]
[1743682080625,5.57644,1793.3,1793.0,5.6329058]
[1743682080822,5.57644,1793.3,1793.0,5.6328758]
[1743682081126,5.57644,1793.3,1793.0,11.2100058]
[1743682081323,5.57608,1793.4,1793.1,5.57681]
[1743682081528,11.15225,1793.4,1793.1,5.57681]
[1743682081838,5.57632,1793.3,1793.0,5.57714]
[1743682082161,5.57632,1793.3,1793.0,11.21003579]
[1743682082461,5.57608,1793.4,1793.1,5.57691]
[1743682082761,0.0792,1793.7,1793.2,0.05576579]
[1743682082923,5.565,1793.9,1793.6,5.57528]
[1743682082924,0.1292,1793.9,1793.6,5.57528]
[1743682083237,0.1292,1793.9,1793.3,3.67365172]
[1743682083238,5.57519,1793.7,1793.3,6.35367]
[1743682083557,5.65439,1793.7,1793.3,7.600037]
[1743682083930,5.57545,1793.6,1793.3,7.600037]
[1743682084123,5.57482,1793.8,1793.5,5.57566]
[1743682084427,0.1292,1793.9,1793.6,5.57508]
[1743682084624,5.70367,1793.9,1793.6,5.57508]
[1743682084857,5.70367,1793.9,1793.6,1.11507]
[1743682085053,0.05,1793.9,1793.7,5.57487]
[1743682085260,0.05,1793.9,1793.8,5.63049781]
[1743682085465,0.05,1793.9,1793.8,5.57475]
[1743682085646,0.22701885,1793.9,1793.8,5.57475]
[1743682085960,0.22701885,1793.9,1793.7,11.95491]
[1743682086164,0.22701885,1793.9,1793.8,6.770241]
[1743682089433,0.22701885,1793.9,1793.8,6.82598172]
[1743682089961,0.22701885,1793.9,1793.8,6.770241]
[1743682090127,0.22701885,1793.9,1793.5,6.11]
[1743682090333,0.22701885,1793.9,1793.6,5.57526]
[1743682090556,0.22701885,1793.9,1793.6,11.15051]
[1743682090949,5.57489,1793.8,1793.4,9.36073]
[1743682091151,5.57489,1793.8,1793.4,14.93659]
[1743682091339,5.75331944,1793.7,1793.4,8.57586]
[1743682091546,5.75331944,1793.7,1793.4,15.6915697]
[1743682092569,0.17823944,1793.7,1793.4,15.6915697]
[1743682092874,0.17823944,1793.7,1793.6,6.39557]
[1743682093069,0.05,1793.9,1793.7,5.57494]
[1743682093267,0.17823944,1793.8,1793.7,5.57492]
[1743682093437,0.05,1793.9,1793.8,5.57475]
[1743682093632,0.22823944,1793.9,1793.8,5.57475]
[1743682094580,0.22823944,1793.9,1793.8,5.63049096]
[1743682095077,0.22823944,1793.9,1793.8,5.57475]
[1743682095277,0.22823944,1793.9,1793.6,6.39548]
[1743682095484,0.22823944,1793.9,1793.7,6.214478]
[1743682095690,0.22823944,1793.9,1793.8,5.57475]
[1743682096348,0.22823944,1793.9,1793.7,6.214478]
[1743682096561,0.22823944,1793.9,1793.7,6.27022203]
[1743682096781,0.22823944,1793.9,1793.6,11.97075]
[1743682096951,0.22823944,1793.9,1793.6,11.15055]
[1743682097280,0.22823944,1793.9,1793.6,5.57521]
[1743682097464,0.22823944,1793.9,1793.7,5.57506]
[1743682097958,0.22823944,1793.9,1793.7,11.14999]
[1743682098158,0.22823944,1793.9,1793.8,5.57475]
[1743682099191,0.22823944,1793.9,1793.8,5.63049184]
[1743682099391,5.80268944,1793.9,1793.6,5.57531]
[1743682099768,0.22823944,1793.9,1793.6,11.20636675]
[1743682099968,0.22823944,1793.9,1793.6,11.15062]
[1743682100277,0.22823944,1793.9,1793.6,5.57531]
[1743682100475,5.57515,1793.7,1793.5,6.11]
[1743682100676,5.75783919,1793.6,1793.3,5.5763]
[1743682101066,5.57583,1793.5,1793.2,5.57648]
[1743682101284,5.57662,1793.2,1793.1,40.128]
[1743682101481,5.65526,1793.4,1793.1,44.34482033]
[1743682101696,0.18135274,1793.3,1793.1,49.92173033]
[1743682101862,5.65526,1793.4,1793.1,9.79373033]
[1743682102191,5.65463,1793.6,1793.3,5.57618]
[1743682103356,5.65463,1793.6,1793.2,5.57656]
[1743682103560,5.57589,1793.5,1793.1,5.57687]
[1743682103793,11.15187,1793.5,1793.1,11.2094129]
[1743682103989,11.15187,1793.5,1793.1,11.15365]
[1743682104195,11.15187,1793.5,1793.1,11.15361]
[1743682104495,5.57589,1793.5,1793.1,12.47299133]
[1743682104707,0.05,1793.9,1793.3,5.57608]
[1743682104863,11.07816,1793.7,1793.3,5.57608]
[1743682105297,5.57547,1793.6,1793.3,5.57608]
[1743682105894,0.0792,1793.8,1793.5,5.57555]
[1743682106065,5.62445,1793.9,1793.6,6.132915]
[1743682106264,5.62445,1793.9,1793.5,5.57555]
[1743682106574,5.57475,1793.8,1793.5,5.57555]
[1743682107588,5.57475,1793.8,1793.5,11.15111]
[1743682108105,5.57475,1793.8,1793.5,5.57555]
[1743682108594,5.57475,1793.8,1793.5,11.15113]
[1743682108770,5.62445,1793.9,1793.5,11.15113]
[1743682109101,11.19912,1793.9,1793.5,11.15113]
[1743682109266,11.19912,1793.9,1793.5,5.57555]
[1743682109467,5.62445,1793.9,1793.6,5.57532]
[1743682109894,11.19905,1793.9,1793.6,5.57532]
[1743682110094,11.19905,1793.9,1793.5,11.15113]
[1743682110405,11.19905,1793.9,1793.3,5.5762]
[1743682110406,0.0792,1793.8,1793.3,5.5762]
[1743682110594,5.57547,1793.6,1793.3,5.63195667]
[1743682110795,11.15024,1793.7,1793.3,11.20815667]
[1743682111098,11.15104,1793.6,1793.3,5.5762]
[1743682111266,11.06608,1793.7,1793.3,5.57618]
[1743682111463,11.06608,1793.7,1793.3,11.15236]
[1743682111869,16.64133,1793.7,1793.3,5.57618]
[1743682112104,5.57538,1793.6,1793.3,5.57618]
[1743682112815,11.06608,1793.7,1793.4,5.57585]
[1743682113193,5.491,1793.7,1793.3,1.115273]
[1743682113372,5.57556,1793.6,1793.2,5.57648]
[1743682113578,5.57556,1793.6,1793.3,5.57628]
[1743682113907,11.06612,1793.7,1793.3,11.15246]
[1743682114110,5.57538,1793.6,1793.3,6.30878761]
[1743682114710,16.64146,1793.7,1793.3,6.30878761]
[1743682115077,5.5754,1793.6,1793.3,6.30878761]
[1743682115273,5.5754,1793.6,1793.3,11.88500761]
[1743682115477,5.491,1793.7,1793.4,5.63156845]
[1743682115689,0.17897249,1793.6,1793.5,5.57565]
[1743682115889,5.491,1793.7,1793.5,5.57565]
[1743682116098,0.17897249,1793.6,1793.5,11.1513]
[1743682116300,5.5751,1793.7,1793.5,1.19326]
[1743682116581,0.17897249,1793.6,1793.4,5.57597]
[1743682116885,5.6543,1793.7,1793.4,5.57597]
[1743682117095,0.17897249,1793.6,1793.4,5.57597]
[1743682117295,5.6543,1793.7,1793.4,5.57597]
[1743682117491,0.17897249,1793.6,1793.4,5.57597]
[1743682117695,5.6543,1793.7,1793.4,6.76445176]
[1743682117894,0.17897249,1793.6,1793.4,6.76445176]
[1743682118080,5.6543,1793.7,1793.4,6.76445176]
[1743682118280,0.17897249,1793.6,1793.4,6.76445176]
[1743682118512,5.6543,1793.7,1793.4,6.76445176]
[1743682118707,0.17897249,1793.6,1793.4,6.76445176]
[1743682119009,5.5759,1793.5,1793.1,13.00628133]
[1743682119198,5.75487249,1793.5,1793.1,12.47311133]
[1743682119407,5.57602,1793.4,1793.1,6.89621133]
[1743682119583,5.57602,1793.4,1793.1,5.63259355]
[1743682119782,0.17854516,1793.3,1793.1,5.63259355]
[1743682120109,5.57602,1793.4,1793.1,5.63259355]
[1743682120313,0.17854516,1793.3,1792.9,40.131]
[1743682120487,5.5772,1793.1,1792.9,40.131]
[1743682120683,0.17646963,1793.0,1792.9,40.131]
[1743682121186,0.17646963,1793.0,1792.8,5.57782]
[1743682121385,5.75371963,1793.0,1792.7,0.7599]
[1743682121586,5.5777,1792.9,1792.7,0.933833]
[1743682121884,0.17506514,1792.8,1792.6,5.57843]
[1743682122125,5.5777,1792.9,1792.6,5.63420657]
[1743682122287,0.17506514,1792.7,1792.6,5.63420657]
[1743682122486,5.5777,1792.9,1792.6,5.63420657]
[1743682122689,0.17506514,1792.8,1792.6,5.63420657]
[1743682123027,5.5777,1792.9,1792.6,6.83149223]
[1743682123189,0.17506514,1792.7,1792.6,6.83149223]
[1743682123389,5.57705,1793.1,1792.6,1.25306223]
[1743682123698,0.17506514,1793.0,1792.7,5.57817]
[1743682123897,5.5774,1793.0,1792.7,5.57817]
[1743682124099,0.17506514,1792.9,1792.7,1.55733475]
[1743682124487,0.17506514,1792.9,1792.8,5.57786]
[1743682124683,5.57696,1793.1,1792.7,7.13539475]
[1743682124907,5.75250514,1793.0,1792.7,1.55733475]
[1743682125110,5.57756,1792.9,1792.6,11.21252725]
[1743682125314,5.57756,1792.9,1792.6,5.57836]
[1743682125500,5.57744,1793.0,1792.7,5.57817]
[1743682125819,0.17506514,1792.9,1792.7,5.57817]
[1743682126017,0.17506514,1792.9,1792.8,5.57786]
[1743682126398,5.577,1793.1,1792.8,5.57786]
[1743682126645,0.17506514,1792.9,1792.8,5.57786]
[1743682126790,11.15409,1793.1,1792.8,5.57786]
[1743682127324,0.17506514,1793.0,1792.8,5.57786]
[1743682128321,5.75240514,1793.0,1792.7,6.693823]
[1743682129328,5.75240514,1793.0,1792.7,5.57817]
[1743682130437,0.17506514,1793.0,1792.8,5.57786]
[1743682130628,0.17506514,1793.0,1792.8,5.57775]
[1743682130829,0.17506514,1793.0,1792.9,6.39965]
[1743682131008,11.03439,1793.3,1793.0,5.57713]
[1743682131526,5.57674,1793.2,1792.9,5.57752]
[1743682131694,5.57674,1793.2,1792.9,6.69305]
[1743682133094,5.57674,1793.2,1792.9,12.27049]
[1743682133335,5.57674,1793.2,1792.9,12.27041]
[1743682133535,16.61079,1793.3,1792.9,12.27041]
[1743682133704,11.03435,1793.3,1793.0,5.57724]
[1743682133899,5.458,1793.3,1793.0,11.15448]
[1743682134234,5.57572,1793.5,1793.2,11.1531]
[1743682134440,11.15158,1793.5,1793.1,11.9277]
[1743682134634,5.57572,1793.5,1793.1,11.9277]
[1743682134841,5.57572,1793.5,1793.2,5.57661]
[1743682136634,11.1516,1793.5,1793.2,5.57661]
[1743682136849,11.15164,1793.5,1793.2,5.57661]
[1743682137052,5.57621,1793.4,1793.1,5.5769]
[1743682137929,5.57621,1793.4,1793.1,11.15373]
[1743682138362,5.57621,1793.4,1793.1,5.57683]
[1743682138541,11.15238,1793.4,1793.1,5.57683]
[1743682138958,5.57617,1793.4,1793.1,5.57683]
[1743682139143,11.15155,1793.5,1793.1,11.83569166]
[1743682139541,0.0792,1793.6,1793.2,5.63210328]
[1743682139754,0.47125762,1793.9,1793.2,5.63210328]
[1743682139755,5.5751,1793.7,1793.4,5.57588]
[1743682140036,5.5751,1793.7,1793.3,5.576]
[1743682140232,5.57555,1793.6,1793.3,5.576]
[1743682140571,11.15031,1793.7,1793.3,12.348665]
[1743682140952,5.57541,1793.6,1793.3,6.772485]
[1743682141158,5.57609,1793.4,1793.1,5.57689]
[1743682141346,5.57609,1793.4,1793.1,5.63265297]
[1743682141734,5.57545,1793.6,1793.1,0.05576297]
[1743682141931,5.65431,1793.7,1793.4,5.57598]
[1743682142167,5.5755,1793.6,1793.2,5.57655]
[1743682142462,5.57673,1793.2,1792.8,11.15542]
[1743682142656,5.57695,1793.1,1792.8,5.57766]
[1743682142973,5.5362,1793.3,1792.7,0.8314]
[1743682142974,5.5774,1793.0,1792.7,0.8314]
[1743682143131,5.57694,1793.1,1792.8,5.57785]
[1743682143330,5.5362,1793.3,1793.0,5.57701]
[1743682143550,5.457,1793.3,1793.0,11.15424]
[1743682143839,5.457,1793.3,1793.0,5.57701]
[1743682144039,5.57705,1793.1,1792.8,5.57781]
[1743682144767,11.15415,1793.1,1792.8,5.57781]
[1743682145182,5.57705,1793.1,1792.8,5.57781]
[1743682145867,0.15946884,1793.0,1792.8,5.57781]
[1743682146258,0.15946884,1793.0,1792.8,6.776442]
[1743682146458,0.15946884,1793.0,1792.9,8.79696181]
[1743682146684,5.5392,1793.5,1793.3,5.57629]
[1743682146982,0.15946884,1793.4,1793.3,11.15233]
[1743682147185,5.5751,1793.7,1793.3,11.15233]
[1743682147352,5.65401,1793.8,1793.4,5.57584]
[1743682147547,11.19905,1793.9,1793.5,5.63130708]
[1743682147754,0.05,1793.9,1793.6,5.57514]
[1743682148054,0.05,1793.9,1793.7,5.575]
[1743682148380,5.62459,1793.9,1793.5,11.15128]
[1743682148549,5.62459,1793.9,1793.5,12.16300155]
[1743682148750,0.05,1793.9,1793.6,5.57528]
[1743682148985,0.05,1793.9,1793.6,11.20626779]
[1743682149160,0.05,1793.9,1793.6,11.15052]
[1743682149380,0.05,1793.9,1793.7,5.57506]
[1743682149567,0.05,1793.9,1793.7,6.38876]
[1743682150289,0.05,1793.9,1793.7,7.58516]
[1743682151395,0.05,1793.9,1793.7,2.0101]
[1743682151578,0.05,1793.9,1793.6,5.57524]
[1743682151767,5.62459,1793.9,1793.6,5.57524]
[1743682151967,0.05,1793.9,1793.6,5.57524]
[1743682152396,5.6245,1793.9,1793.6,5.57524]
[1743682152596,0.05,1793.9,1793.6,6.84723035]
[1743682152801,0.05,1793.9,1793.7,5.57506]
[1743682153871,0.05,1793.9,1793.8,5.57475]
[1743682155075,0.21203268,1793.9,1793.8,5.57475]
[1743682155296,0.05,1793.9,1793.8,5.63048547]
[1743682155501,0.21703893,1793.9,1793.8,5.63048547]
[1743682155677,0.05,1793.9,1793.8,7.09934573]
[1743682155895,0.21777117,1793.9,1793.8,7.09934573]
[1743682156097,0.05,1793.9,1793.8,7.15508127]
[1743682156289,0.21777117,1793.9,1793.8,7.15508127]
[1743682156809,0.21777117,1793.9,1793.8,7.09934573]
[1743682157206,0.21777117,1793.9,1793.8,7.15508537]
[1743682159582,0.21777117,1793.9,1793.8,11.17619718]
[1743682159897,0.21777117,1793.9,1793.8,11.12045754]
[1743682161690,0.21777117,1793.9,1793.8,20.51006302]
[1743682161889,0.0792,1794.8,1793.9,3.0]
[1743682162085,0.0792,1794.8,1794.6,5.57205]
[1743682162280,5.911549,1794.9,1794.6,11.19990718]
[1743682162281,0.14196535,1794.7,1794.6,11.19990718]
[1743682162481,0.14196535,1794.7,1794.6,5.57205]
[1743682162682,0.05,1794.9,1794.6,11.14419]
[1743682162916,5.62135,1794.9,1794.6,5.57205]
[1743682163091,0.14196535,1794.8,1794.5,8.79189181]
[1743682163290,0.14196535,1794.8,1794.6,6.50703489]
[1743682163495,5.62135,1794.9,1794.6,12.07919489]
[1743682163711,0.14196535,1794.7,1794.6,6.45131918]
[1743682163914,5.62135,1794.9,1794.6,6.50703492]
[1743682164114,0.14196535,1794.7,1794.6,12.07920492]
[1743682164319,5.62134,1794.9,1794.6,6.45131918]
[1743682164519,0.14196535,1794.7,1794.6,5.6278457]
[1743682164983,5.62134,1794.9,1794.6,5.57213]
[1743682165183,0.14196535,1794.7,1794.4,0.7504]
[1743682165390,5.65156,1794.6,1794.3,5.57307]
[1743682165615,5.79352535,1794.6,1794.3,5.57307]
[1743682165816,5.71432535,1794.6,1794.3,5.57307]
[1743682166123,0.14196535,1794.6,1794.5,5.57258]
[1743682166325,5.71424535,1794.6,1794.3,5.5731]
[1743682166490,11.14418,1794.7,1794.3,5.5731]
[1743682166692,0.14196535,1794.5,1794.4,5.57283]
[1743682166891,11.14418,1794.7,1794.3,11.14617]
[1743682167124,0.14196535,1794.5,1794.3,11.14617]
[1743682167322,11.14418,1794.7,1794.3,11.14616]
[1743682167490,0.14196535,1794.4,1794.3,12.342607]
[1743682167821,0.14196535,1794.4,1794.3,6.769517]
[1743682168030,11.14477,1794.6,1794.3,5.57307]
[1743682168188,0.14196535,1794.4,1794.3,5.57307]
[1743682168387,5.57229,1794.6,1794.3,5.57307]
[1743682168588,0.14196535,1794.4,1794.3,5.57307]
[1743682168813,5.57202,1794.7,1794.3,11.14616]
[1743682169016,11.14354,1794.8,1794.4,5.5728]
[1743682169221,0.14196535,1794.6,1794.4,5.5728]
[1743682169422,11.14418,1794.7,1794.3,5.57314]
[1743682169599,0.14196535,1794.5,1794.3,5.57314]
[1743682169801,5.5724,1794.6,1794.3,5.57314]
[1743682170000,0.14196535,1794.4,1794.3,5.57314]
[1743682170198,5.57265,1794.5,1794.2,6.39177]
[1743682170535,5.71495535,1794.4,1794.1,5.57376]
[1743682170690,5.71495535,1794.4,1794.1,11.14744]
[1743682171091,11.28802535,1794.4,1794.0,12.80681]
[1743682171293,5.57323,1794.3,1794.0,11.98411]
[1743682171597,0.14428323,1794.2,1794.0,11.98411]
[1743682171914,0.14428323,1794.2,1794.1,6.82796361]
[1743682172323,0.0792,1794.5,1794.1,1.25414361]
[1743682172624,0.14367336,1794.4,1794.3,5.57318]
[1743682172840,0.0792,1794.7,1794.2,0.7558]
[1743682173000,0.14367336,1794.4,1794.2,5.57348]
[1743682173200,5.5729,1794.4,1794.1,9.99135281]
[1743682173415,0.14367336,1794.3,1794.1,15.62076269]
[1743682173630,11.1455,1794.5,1794.2,1.56207627]
[1743682173817,0.14513737,1794.2,1794.1,9.99135281]
[1743682174016,11.1455,1794.5,1794.1,10.04708487]
[1743682174219,0.14513737,1794.2,1794.1,10.04708487]
[1743682174434,11.1455,1794.5,1794.1,10.04708487]
[1743682174618,0.14513737,1794.2,1794.1,10.04708487]
[1743682174824,5.57273,1794.5,1794.1,10.04708487]
[1743682174825,5.57273,1794.5,1794.2,5.57342]
[1743682175022,0.14525936,1794.2,1794.1,4.41782281]
[1743682175213,5.57325,1794.3,1794.0,6.70588]
[1743682175418,0.14525936,1794.2,1794.1,0.05573266]
[1743682175623,5.65222,1794.4,1794.1,5.62955266]
[1743682175826,0.14525936,1794.2,1794.1,5.62955266]
[1743682176026,5.65222,1794.4,1794.1,6.86308893]
[1743682176315,0.14525936,1794.2,1794.1,10.08250074]
[1743682176514,5.65124,1794.7,1794.4,11.14557]
[1743682176715,0.05,1794.9,1794.6,5.57225]
[1743682176716,11.27212,1794.9,1794.6,5.57225]
[1743682176949,5.57177,1794.8,1794.5,5.57257]
[1743682177725,5.57177,1794.8,1794.5,12.259551]
[1743682178062,0.05,1794.9,1794.7,5.57181]
[1743682178833,0.05,1794.9,1794.6,5.57221]
[1743682179461,0.05,1794.9,1794.6,11.14438]
[1743682179659,0.05,1794.9,1794.6,11.14433]
[1743682179954,0.05,1794.9,1794.6,12.69215828]
[1743682180147,0.05,1794.9,1794.7,5.57195]
[1743682181846,0.05,1794.9,1794.7,11.19948549]
[1743682182053,0.05,1794.9,1794.8,5.57165]
[1743682182844,0.05,1794.9,1794.8,6.32465]
[1743682183160,0.19763748,1794.9,1794.8,7.83623818]
[1743682183366,0.05,1794.9,1794.8,7.89193998]
[1743682183568,0.19763748,1794.9,1794.8,14.11135179]
[1743682183733,0.05,1794.9,1794.8,14.60564999]
[1743682184265,0.05,1794.9,1794.8,15.022377]
[1743682184655,5.74749,1795.9,1795.3,5.56998]
[1743682184833,5.74749,1795.9,1795.5,3.21941181]
[1743682185472,0.1792,1795.9,1795.4,0.7631]
[1743682185769,5.74755,1795.9,1795.4,0.7631]
[1743682186231,11.31599,1795.9,1795.4,0.7631]
[1743682187275,0.1792,1795.9,1795.2,9.47211181]
[1743682187480,5.56885,1795.8,1795.3,0.05569055]
[1743682187797,11.31592,1795.9,1795.4,3.21941181]
[1743682187943,11.31592,1795.9,1795.5,0.05568653]
[1743682188139,5.5686,1795.8,1795.5,0.05568653]
[1743682188342,5.5686,1795.8,1795.4,3.21941181]
[1743682188574,5.5686,1795.8,1795.4,3.54135299]
[1743682188944,5.5686,1795.8,1795.5,0.05568655]
[1743682189749,5.5686,1795.8,1795.4,3.54135299]
[1743682190252,0.1606793,1795.7,1795.6,0.8266]
[1743682190574,0.05,1795.9,1795.6,0.8266]
[1743682190878,0.05,1795.9,1795.6,4.04601181]
[1743682191083,0.05,1795.9,1795.6,4.45618165]
[1743682191375,0.16134923,1795.8,1795.6,4.45618165]
[1743682191565,0.16134923,1795.8,1795.7,0.05568443]
[1743682191771,0.05,1795.9,1795.8,6.38654]
[1743682191952,0.05,1795.9,1795.8,9.60595181]
[1743682192158,0.21195817,1795.9,1795.8,5.96656901]
[1743682192476,0.21195817,1795.9,1795.8,4.44287117]
[1743682192868,0.21195817,1795.9,1795.8,4.99287117]
[1743682193069,0.21195817,1795.9,1795.8,4.93720183]
[1743682193583,11.03014,1796.9,1796.5,3.21941181]
[1743682193584,0.05,1796.9,1796.5,3.21941181]
[1743682193750,0.05,1796.9,1796.8,3.21941181]
[1743682193945,0.05,1796.9,1796.8,3.54135299]
[1743682195702,0.05,1796.9,1796.8,3.97238897]
[1743682196716,0.05,1796.9,1796.6,4.45724779]
[1743682196853,0.05,1796.9,1796.7,0.05564982]
[1743682197255,0.05,1796.9,1796.6,9.89824779]
[1743682197710,0.05,1796.9,1796.7,0.05564481]
[1743682198303,0.05,1797.9,1796.8,9.97185779]
[1743682198512,0.05,1797.9,1797.5,3.65044779]
[1743682198654,5.56279,1797.7,1797.3,3.65044779]
[1743682199015,3.05,1797.9,1797.4,0.05562848]
[1743682199154,8.61208,1797.9,1797.4,0.05562848]
[1743682199363,5.56254,1797.8,1797.3,3.65044779]
[1743682199567,11.1251,1797.8,1797.3,3.65044779]
[1743682200114,5.56254,1797.8,1797.4,0.05562848]
[1743682200316,5.56254,1797.8,1797.3,3.65044779]
[1743682200471,11.12511,1797.8,1797.3,3.65044779]
[1743682200678,5.56277,1797.7,1797.3,3.65044779]
[1743682201088,5.82345413,1797.6,1797.1,4.40654779]
[1743682201372,5.56347,1797.5,1797.2,0.055636]
[1743682201767,0.13240508,1797.4,1797.1,4.40654779]
[1743682201983,8.56278,1797.7,1797.2,0.44065478]
[1743682202201,5.69557508,1797.6,1797.2,0.05562851]
[1743682202484,0.13240508,1797.6,1797.2,0.05562851]
[1743682202730,8.56269,1797.7,1797.2,0.05562851]
[1743682202907,0.13240508,1797.5,1797.2,0.05562851]
[1743682203084,8.56269,1797.7,1797.3,3.65044779]
[1743682203283,0.13240508,1797.6,1797.3,3.65044779]
[1743682203486,5.56304,1797.6,1797.3,4.01549257]
[1743682203730,0.13240508,1797.5,1797.3,4.01549257]
[1743682203930,0.13240508,1797.5,1797.3,3.65044779]
[1743682204745,0.13240508,1797.5,1797.1,4.40654779]
[1743682205101,0.13240508,1797.5,1797.2,0.05563137]
[1743682205334,0.13240508,1797.5,1797.1,4.40654779]
[1743682205536,0.13240508,1797.5,1797.2,0.05563137]
[1743682205937,0.13240508,1797.5,1797.1,5.39560257]
[1743682207148,0.13240508,1797.5,1797.2,0.0556323]
[1743682207508,11.12689,1797.5,1797.2,0.0556323]
[1743682207703,0.13240508,1797.4,1797.2,0.0556323]
[1743682207909,0.13240508,1797.4,1797.2,0.05563577]
[1743682208130,5.82523508,1797.4,1796.9,9.95698359]
[1743682208321,5.5639,1797.3,1796.9,10.95368195]
[1743682208526,5.69283,1797.4,1796.9,10.95368195]
[1743682208753,0.13240508,1797.2,1796.9,10.95368195]
[1743682208921,5.56391,1797.3,1796.9,10.95368195]
[1743682209217,0.13240508,1797.1,1796.9,10.95368195]
[1743682209549,0.13240508,1797.0,1796.9,1.83023416]
[1743682209756,0.13240508,1797.0,1796.9,4.70178195]
[1743682209935,11.12684,1797.5,1796.9,5.50738195]
[1743682210110,11.12684,1797.5,1797.0,0.5507382]
[1743682210453,5.69599508,1797.4,1797.1,0.0556364]
[1743682210650,5.69599508,1797.4,1796.8,0.17384684]
[1743682210651,0.1292,1797.3,1796.8,0.17384684]
[1743682210858,8.69433,1796.9,1796.8,0.17384684]
[1743682211506,3.1292,1796.8,1795.9,0.8103]
[1743682211705,5.5671,1796.3,1795.9,0.8103]
[1743682211937,5.5671,1796.3,1796.0,0.05567116]
[1743682212160,5.56647,1796.5,1796.0,0.05567116]
[1743682212322,5.56647,1796.5,1796.0,3.70611895]
[1743682212323,0.1197094,1796.2,1796.0,3.70611895]
[1743682212508,0.1292,1796.7,1796.0,3.70611895]
[1743682212705,8.56554,1796.8,1796.2,3.65044779]
[1743682212906,5.69439,1796.9,1796.4,0.7755]
[1743682213206,11.25972,1796.9,1796.5,0.05565593]
[1743682213422,5.69439,1796.9,1796.5,0.05565593]
[1743682214737,11.25982,1796.9,1796.5,0.05565593]